fUSD/lending_fUSD_20260607
["ID","MTS","AMOUNT","RATE_DAILY","PERIOD"]
[424355084,1780782664000,-668.65185756,0.00030756,2]
[424355098,1780782664000,-881.60510285,0.00030944,2]
[424355079,1780782664000,-752.27,0.00030419,7]
[424355103,1780782664000,-991.01665755,0.00030944,2]
[424355093,1780782664000,-656.0,0.00030875,6]
[424355109,1780782664000,-783.29474053,0.00030945,2]
[424355096,1780782664000,-955.34219512,0.00030944,2]
[424355113,1780782664000,-776.6957487,0.00030945,2]
[424355115,1780782664000,-940.28866093,0.00030945,2]
[424355087,1780782664000,-204.69,0.00030855,4]
[424355106,1780782664000,-1029.62017154,0.00030944,2]
[424355114,1780782664000,-841.31512471,0.00030945,2]
[424355117,1780782664000,-810.76550712,0.00030945,2]
[424355097,1780782664000,-1015.06451427,0.00030944,2]
[424355116,1780782664000,-937.04513354,0.00030945,2]
[424355110,1780782664000,-841.71743099,0.00030945,2]
[424355107,1780782664000,-844.20935204,0.00030944,2]
[424355105,1780782664000,-1774.96584915,0.00030944,2]
[424355101,1780782664000,-1295.91194435,0.00030944,2]
[424355100,1780782664000,-1652.24726762,0.00030944,2]
[424355099,1780782664000,-942.48684774,0.00030944,2]
[424355108,1780782664000,-790.13211672,0.00030944,2]
[424355088,1780782664000,-1732.82,0.00030868,2]
[424355068,1780782664000,-762.73194114,0.0003037,2]
[424355081,1780782664000,-616.8,0.00030447,7]
[424355111,1780782664000,-1665.14218136,0.00030945,2]
[424355052,1780782664000,-611.93919159,0.0003037,2]
[424355053,1780782664000,-165.23833641,0.0003037,2]
[424355058,1780782664000,-629.79497255,0.0003037,2]
[424355055,1780782664000,-695.31267692,0.0003037,2]
[424355057,1780782664000,-598.11840135,0.0003037,2]
[424355056,1780782664000,-753.33895809,0.0003037,2]
[424355054,1780782664000,-623.98234023,0.0003037,2]
[424355064,1780782664000,-166.49448706,0.0003037,2]
[424355059,1780782664000,-702.05343602,0.0003037,2]
[424355062,1780782664000,-164.31300598,0.0003037,2]
[424355061,1780782664000,-630.07628039,0.0003037,2]
[424355060,1780782664000,-464.2251992,0.0003037,2]
[424355065,1780782664000,-423.69628481,0.0003037,2]
[424355082,1780782664000,-151.0,0.00030707,4]
[424355063,1780782664000,-785.69362434,0.0003037,2]
[424355078,1780782664000,-1095.24,0.00030419,7]
[424355067,1780782664000,-671.54710687,0.0003037,2]
[424355070,1780782664000,-694.82594848,0.00030374,2]
[424355069,1780782664000,-151.0,0.0003037,7]
[424355077,1780782664000,-1176.51,0.00030419,7]
[424355072,1780782664000,-630.06339737,0.00030416,2]
[424355074,1780782664000,-610.26225929,0.00030416,2]
[424355075,1780782664000,-665.72559074,0.00030416,2]
[424355073,1780782664000,-786.18480516,0.00030416,2]
[424355071,1780782664000,-182.9,0.00030411,120]
[424355076,1780782664000,-731.42796359,0.00030416,2]
[424355090,1780782664000,-150.0,0.00030875,2]
[424355085,1780782664000,-500.0,0.00030796,2]
[424355089,1780782664000,-150.0,0.00030875,2]
[424355066,1780782664000,-698.99523732,0.0003037,2]
[424355051,1780782664000,-268.41921305,0.0003037,2]
[424355118,1780782664000,-750.36386079,0.00030945,2]
[424355120,1780782664000,-818.09503974,0.00030945,2]
[424355150,1780782664000,-215.80795776,0.00031,30]
[424355152,1780782664000,-179.97120458,0.00031057,2]
[424355153,1780782664000,-150.0,0.00031089,2]
[424355146,1780782664000,-762.82782411,0.00030996,2]
[424355151,1780782664000,-150.0,0.00031011,2]
[424355149,1780782664000,-351.15597705,0.00031,5]
[424355160,1780782664000,-1050.0,0.00031284,30]
[424355165,1780782664000,-495.0,0.00031332,30]
[424355162,1780782664000,-1061.37,0.00031305,7]
[424355164,1780782664000,-445.0,0.00031332,30]
[424355163,1780782664000,-1337.0,0.00031332,30]
[424355161,1780782664000,-1140.12,0.00031305,7]
[424355171,1780782664000,-719.0,0.00031347,30]
[424355166,1780782664000,-1383.0,0.00031332,30]
[424355156,1780782664000,-187.4,0.00031133,30]
[424355172,1780782664000,-671.0,0.00031347,30]
[424355170,1780782664000,-245.0,0.00031346,30]
[424355169,1780782664000,-996.0,0.00031342,7]
[424355168,1780782664000,-597.72,0.00031334,7]
[424355167,1780782664000,-1228.59,0.00031334,7]
[424355175,1780782664000,-1467.0,0.00031347,30]
[424355174,1780782664000,-1920.0,0.00031347,30]
[424355180,1780782664000,-15522.41821028,0.0003143,4]
[424355183,1780782664000,-337.27326315,0.00031507,30]
[424355178,1780782664000,-179.97120458,0.00031405,2]
[424355177,1780782664000,-391.0,0.00031347,30]
[424355176,1780782664000,-623.0,0.00031347,30]
[424355182,1780782664000,-150.0,0.000315,2]
[424355181,1780782664000,-201.03791785,0.000315,2]
[424355112,1780782664000,-978.54706228,0.00030945,2]
[424355173,1780782664000,-454.0,0.00031347,30]
[424355155,1780782664000,-1755.97,0.000311,7]
[424355179,1780782664000,-656.0,0.00031409,6]
[424355154,1780782664000,-219.0,0.00031089,2]
[424355148,1780782664000,-914.28495449,0.00030996,2]
[424355122,1780782664000,-1494.57492338,0.00030945,2]
[424355125,1780782664000,-757.49304235,0.00030945,2]
[424355126,1780782664000,-899.08943169,0.00030945,2]
[424355128,1780782664000,-796.65865029,0.00030945,2]
[424355121,1780782664000,-802.05452546,0.00030945,2]
[424355131,1780782664000,-151.0,0.00030948,7]
[424355124,1780782664000,-822.80687022,0.00030945,2]
[424355123,1780782664000,-768.1843389,0.00030945,2]
[424355129,1780782664000,-897.27470758,0.00030945,2]
[424355130,1780782664000,-972.79559922,0.00030945,2]
[424355127,1780782664000,-978.45402963,0.00030945,2]
[424355132,1780782664000,-1007.62967295,0.00030948,2]
[424355134,1780782664000,-1273.66399704,0.00030948,2]
[424355133,1780782664000,-869.11089687,0.00030948,2]
[424355119,1780782664000,-1553.43824523,0.00030945,2]
[424355141,1780782664000,-873.74404665,0.00030948,2]
[424355143,1780782664000,-868.5324356,0.00030953,2]
[424355159,1780782664000,-340.48,0.00031279,5]
[424355157,1780782664000,-1226.661428,0.000312,4]
[424355158,1780782664000,-1000.0,0.000312,7]
[424355147,1780782664000,-832.15698843,0.00030996,2]
[424355139,1780782664000,-787.24371569,0.00030948,2]
[424355142,1780782664000,-953.41492642,0.00030948,2]
[424355137,1780782664000,-821.30925931,0.00030948,2]
[424355136,1780782664000,-764.92398949,0.00030948,2]
[424355135,1780782664000,-816.04459615,0.00030948,2]
[424355144,1780782664000,-250.0,0.00030955,7]
[424355145,1780782664000,-982.73100645,0.00030996,2]
[424355138,1780782664000,-941.67369761,0.00030948,2]
[424355140,1780782664000,-877.56679502,0.00030948,2]
[424355223,1780782665000,-1076.72964909,0.00031813,2]
[424355234,1780782665000,-1127.8494603,0.00031821,2]
[424355236,1780782665000,-1179.27720773,0.00031865,2]
[424355226,1780782665000,-917.90878739,0.00031817,2]
[424355224,1780782665000,-1528.39679645,0.00031817,2]
[424355220,1780782665000,-908.99165082,0.00031813,2]
[424355217,1780782665000,-921.82120668,0.00031813,2]
[424355219,1780782665000,-987.36824426,0.00031813,2]
[424355215,1780782665000,-1864.12589427,0.00031813,2]
[424355218,1780782665000,-1793.48990805,0.00031813,2]
[424355221,1780782665000,-1078.90731802,0.00031813,2]
[424355225,1780782665000,-979.25351538,0.00031817,2]
[424355235,1780782665000,-1042.23892272,0.00031821,2]
[424355228,1780782665000,-1068.86216566,0.00031817,2]
[424355238,1780782665000,-998.58838612,0.00031865,2]
[424355227,1780782665000,-985.57111117,0.00031817,2]
[424355229,1780782665000,-1130.00843713,0.00031817,2]
[424355232,1780782665000,-1144.09791171,0.00031817,2]
[424355233,1780782665000,-1000.0,0.00031817,2]
[424355231,1780782665000,-1048.49285599,0.00031817,2]
[424355230,1780782665000,-1053.08015402,0.00031817,2]
[424355239,1780782665000,-1097.14194538,0.00031865,2]
[424355242,1780782665000,-867.65345424,0.00032,120]
[424355241,1780782665000,-191.87100063,0.00032,120]
[424355244,1780782665000,-1173.18501591,0.00032,120]
[424355240,1780782665000,-656.0,0.00031943,7]
[424355243,1780782665000,-247.07951334,0.00032,120]
[424355216,1780782665000,-981.71404768,0.00031813,2]
[424355237,1780782665000,-915.39338894,0.00031865,2]
[424355222,1780782665000,-1174.14483556,0.00031813,2]
[424355201,1780782665000,-2104.96236861,0.00031812,2]
[424355213,1780782665000,-972.91860854,0.00031813,2]
[424355245,1780782665000,-176.49218825,0.00032,120]
[424355185,1780782665000,-300.0,0.00031507,2]
[424355187,1780782665000,-150.0,0.0003161,2]
[424355186,1780782665000,-150.0,0.0003161,2]
[424355184,1780782665000,-150.0,0.00031507,2]
[424355188,1780782665000,-150.0,0.0003161,2]
[424355191,1780782665000,-150.0,0.0003161,2]
[424355189,1780782665000,-150.0,0.0003161,2]
[424355194,1780782665000,-150.0,0.00031644,2]
[424355193,1780782665000,-150.0,0.0003161,2]
[424355190,1780782665000,-150.0,0.0003161,2]
[424355192,1780782665000,-150.0,0.0003161,2]
[424355199,1780782665000,-1982.69672114,0.00031812,2]
[424355197,1780782665000,-166.22,0.000318,14]
[424355196,1780782665000,-179.97120458,0.00031752,2]
[424355195,1780782665000,-245.01148348,0.00031707,4]
[424355198,1780782665000,-1130.98421729,0.00031812,2]
[424355202,1780782665000,-2129.95901899,0.00031812,2]
[424355200,1780782665000,-1555.09433321,0.00031812,2]
[424355209,1780782665000,-979.56122538,0.00031813,2]
[424355203,1780782665000,-1235.54420584,0.00031812,2]
[424355205,1780782665000,-948.15854006,0.00031812,2]
[424355211,1780782665000,-1128.34639311,0.00031813,2]
[424355206,1780782665000,-1998.17061763,0.00031813,2]
[424355204,1780782665000,-1013.05122245,0.00031812,2]
[424355207,1780782665000,-1174.25647474,0.00031813,2]
[424355210,1780782665000,-1009.57814965,0.00031813,2]
[424355208,1780782665000,-932.03489844,0.00031813,2]
[424355212,1780782665000,-1124.45416024,0.00031813,2]
[424355214,1780782665000,-900.43663294,0.00031813,2]
[424355247,1780782665000,-234.30473028,0.00032,120]
[424355249,1780782665000,-203.01038069,0.00032,120]
[424355246,1780782665000,-194.91565139,0.00032,120]
[424355279,1780782665000,-184.62,0.00032197,13]
[424355282,1780782665000,-160.838676,0.000322,7]
[424355277,1780782665000,-3642.0,0.00032147,2]
[424355280,1780782665000,-184.62,0.00032197,13]
[424355284,1780782665000,-326.757431,0.000322,7]
[424355286,1780782665000,-192.9641,0.000322,7]
[424355285,1780782665000,-457.299155,0.000322,7]
[424355290,1780782665000,-15198.04124588,0.000323,120]
[424355292,1780782665000,-152.19,0.00032307,13]
[424355295,1780782665000,-445.0,0.00032332,30]
[424355299,1780782665000,-150.0,0.00032345,2]
[424355301,1780782665000,-150.0,0.00032345,2]
[424355300,1780782665000,-150.0,0.00032345,2]
[424355283,1780782665000,-194.296839,0.000322,7]
[424355294,1780782665000,-1337.0,0.00032332,30]
[424355297,1780782665000,-1383.0,0.00032332,30]
[424355291,1780782665000,-152.19,0.00032307,13]
[424355302,1780782665000,-150.0,0.00032345,2]
[424355296,1780782665000,-495.0,0.00032332,30]
[424355298,1780782665000,-150.0,0.00032345,2]
[424355304,1780782665000,-150.0,0.00032345,2]
[424355307,1780782665000,-671.0,0.00032347,30]
[424355308,1780782665000,-454.0,0.00032347,30]
[424355303,1780782665000,-150.0,0.00032345,2]
[424355306,1780782665000,-719.0,0.00032347,30]
[424355309,1780782665000,-1920.0,0.00032347,30]
[424355305,1780782665000,-245.0,0.00032346,30]
[424355250,1780782665000,-361.2537955,0.00032,120]
[424355293,1780782665000,-513.99774297,0.00032321,2]
[424355281,1780782665000,-263.311048,0.000322,7]
[424355310,1780782665000,-1467.0,0.00032347,30]
[424355288,1780782665000,-1050.0,0.00032284,30]
[424355289,1780782665000,-911.14293524,0.000323,2]
[424355262,1780782665000,-705.07286941,0.00032,120]
[424355261,1780782665000,-661.50976053,0.00032,120]
[424355252,1780782665000,-480.50509247,0.00032,120]
[424355263,1780782665000,-1450.06087723,0.00032,120]
[424355251,1780782665000,-894.1558848,0.00032,120]
[424355253,1780782665000,-547.88475529,0.00032,120]
[424355255,1780782665000,-372.39131337,0.00032,120]
[424355259,1780782665000,-979.57132833,0.00032,120]
[424355256,1780782665000,-397.53280426,0.00032,120]
[424355258,1780782665000,-227.3557133,0.00032,120]
[424355254,1780782665000,-606.04571185,0.00032,120]
[424355257,1780782665000,-554.51108936,0.00032,120]
[424355260,1780782665000,-172.04040201,0.00032,120]
[424355248,1780782665000,-382.09704819,0.00032,120]
[424355273,1780782665000,-3554.0,0.00032147,2]
[424355287,1780782665000,-279.7,0.0003221,5]
[424355278,1780782665000,-500.1,0.00032159,2]
[424355271,1780782665000,-187.4,0.0003213,30]
[424355269,1780782665000,-154.79460431,0.00032051,2]
[424355265,1780782665000,-467.0,0.00032,5]
[424355270,1780782665000,-179.97120458,0.000321,2]
[424355272,1780782665000,-1358.0,0.00032147,2]
[424355267,1780782665000,-2000.0,0.00032,7]
[424355268,1780782665000,-2633.1382479,0.00032,2]
[424355275,1780782665000,-1227.0,0.00032147,2]
[424355274,1780782665000,-1274.0,0.00032147,2]
[424355264,1780782665000,-1764.34370299,0.00032,2]
[424355266,1780782665000,-700.0,0.00032,2]
[424355276,1780782665000,-933.0,0.00032147,2]
[424355356,1780782666000,-150.0,0.00032877,3]
[424355351,1780782666000,-150.0,0.00032877,3]
[424355348,1780782666000,-1611.24872746,0.00032876,2]
[424355349,1780782666000,-351.13,0.00032877,2]
[424355350,1780782666000,-1252.01,0.00032877,2]
[424355344,1780782666000,-1272.03846905,0.00032876,2]
[424355354,1780782666000,-150.0,0.00032877,3]
[424355353,1780782666000,-150.0,0.00032877,3]
[424355347,1780782666000,-1611.24872746,0.00032876,2]
[424355345,1780782666000,-1272.03846905,0.00032876,2]
[424355346,1780782666000,-1611.24872746,0.00032876,2]
[424355352,1780782666000,-150.0,0.00032877,3]
[424355366,1780782666000,-150.0,0.00032877,3]
[424355363,1780782666000,-150.0,0.00032877,3]
[424355357,1780782666000,-150.0,0.00032877,3]
[424355359,1780782666000,-150.0,0.00032877,3]
[424355358,1780782666000,-150.0,0.00032877,3]
[424355362,1780782666000,-150.0,0.00032877,3]
[424355360,1780782666000,-150.0,0.00032877,3]
[424355361,1780782666000,-150.0,0.00032877,3]
[424355365,1780782666000,-150.0,0.00032877,3]
[424355364,1780782666000,-150.0,0.00032877,3]
[424355367,1780782666000,-150.0,0.00032877,3]
[424355314,1780782666000,-166.22,0.000324,14]
[424355368,1780782666000,-150.0,0.00032877,3]
[424355371,1780782666000,-167.65243691,0.00032877,2]
[424355343,1780782666000,-1272.03846905,0.00032876,2]
[424355355,1780782666000,-150.0,0.00032877,3]
[424355337,1780782666000,-1272.03846905,0.00032876,2]
[424355321,1780782666000,-1084.26,0.00032487,2]
[424355338,1780782666000,-1272.03846905,0.00032876,2]
[424355315,1780782666000,-410.73,0.0003242,5]
[424355313,1780782666000,-152.0,0.00032378,5]
[424355311,1780782666000,-623.0,0.00032347,30]
[424355312,1780782666000,-391.0,0.00032347,30]
[424355316,1780782666000,-179.97120458,0.00032448,2]
[424355319,1780782666000,-1103.73,0.00032487,7]
[424355318,1780782666000,-656.0,0.00032477,7]
[424355320,1780782666000,-1027.5,0.00032487,7]
[424355322,1780782666000,-150.0,0.00032562,2]
[424355374,1780782666000,-500.0,0.00032877,2]
[424355323,1780782666000,-179.97120458,0.00032795,2]
[424355328,1780782666000,-500.0,0.00032876,2]
[424355327,1780782666000,-500.0,0.00032876,2]
[424355333,1780782666000,-500.0,0.00032876,2]
[424355324,1780782666000,-1732.82,0.00032797,2]
[424355325,1780782666000,-1001.87689534,0.00032797,2]
[424355317,1780782666000,-212.617068,0.0003245,7]
[424355331,1780782666000,-500.0,0.00032876,2]
[424355336,1780782666000,-1272.03846905,0.00032876,2]
[424355334,1780782666000,-264.62332129,0.00032876,2]
[424355340,1780782666000,-1272.03846905,0.00032876,2]
[424355339,1780782666000,-1272.03846905,0.00032876,2]
[424355332,1780782666000,-500.0,0.00032876,2]
[424355341,1780782666000,-1272.03846905,0.00032876,2]
[424355330,1780782666000,-500.0,0.00032876,2]
[424355329,1780782666000,-448.29496423,0.00032876,2]
[424355335,1780782666000,-408.23477597,0.00032876,2]
[424355342,1780782666000,-1272.03846905,0.00032876,2]
[424355326,1780782666000,-399.65031072,0.00032876,2]
[424355375,1780782666000,-500.0,0.00032877,2]
[424355372,1780782666000,-500.0,0.00032877,2]
[424355369,1780782666000,-150.0,0.00032877,3]
[424355406,1780782666000,-372.39131337,0.00033,120]
[424355408,1780782666000,-397.53280426,0.00033,120]
[424355412,1780782666000,-661.50976053,0.00033,120]
[424355410,1780782666000,-979.57132833,0.00033,120]
[424355413,1780782666000,-705.07286941,0.00033,120]
[424355411,1780782666000,-172.04040201,0.00033,120]
[424355409,1780782666000,-227.3557133,0.00033,120]
[424355415,1780782666000,-574.176334,0.00033,14]
[424355420,1780782666000,-150.0,0.0003308,2]
[424355418,1780782666000,-190.055139,0.00033,8]
[424355419,1780782666000,-656.0,0.00033011,8]
[424355425,1780782666000,-150.0,0.0003308,2]
[424355417,1780782666000,-160.416742,0.00033,8]
[424355407,1780782666000,-554.51108936,0.00033,120]
[424355421,1780782666000,-150.0,0.0003308,2]
[424355426,1780782666000,-1245.0,0.00033084,7]
[424355416,1780782666000,-176.637008,0.00033,8]
[424355422,1780782666000,-150.0,0.0003308,2]
[424355428,1780782666000,-1188.01394062,0.00033115,2]
[424355424,1780782666000,-150.0,0.0003308,2]
[424355430,1780782666000,-1077.36108044,0.00033115,2]
[424355431,1780782666000,-1319.48158684,0.00033115,2]
[424355432,1780782666000,-2313.14617467,0.00033115,2]
[424355433,1780782666000,-1814.27672208,0.00033115,2]
[424355435,1780782666000,-2455.78943005,0.00033115,2]
[424355429,1780782666000,-1323.78837357,0.00033115,2]
[424355434,1780782666000,-2484.95218882,0.00033115,2]
[424355370,1780782666000,-286.0,0.00032877,3]
[424355423,1780782666000,-150.0,0.0003308,2]
[424355405,1780782666000,-606.04571185,0.00033,120]
[424355427,1780782666000,-1820.05,0.00033109,14]
[424355403,1780782666000,-480.50509247,0.00033,120]
[424355378,1780782666000,-426.75802373,0.00032877,2]
[424355414,1780782666000,-1450.06087723,0.00033,120]
[424355377,1780782666000,-500.0,0.00032877,2]
[424355373,1780782666000,-500.0,0.00032877,2]
[424355376,1780782666000,-500.0,0.00032877,2]
[424355390,1780782666000,-400.0,0.00032955,2]
[424355379,1780782666000,-192.35766522,0.00032877,2]
[424355382,1780782666000,-6630.929561,0.00032927,2]
[424355386,1780782666000,-500.0,0.00032955,2]
[424355388,1780782666000,-504.47524266,0.00032955,2]
[424355389,1780782666000,-400.0,0.00032955,2]
[424355384,1780782666000,-289.41283274,0.00032955,2]
[424355383,1780782666000,-150.0,0.00032955,2]
[424355381,1780782666000,-300.0,0.00032877,2]
[424355380,1780782666000,-337.27326315,0.00032877,30]
[424355385,1780782666000,-424.99582952,0.00032955,2]
[424355387,1780782666000,-500.0,0.00032955,2]
[424355404,1780782666000,-547.88475529,0.00033,120]
[424355402,1780782666000,-894.1558848,0.00033,120]
[424355398,1780782666000,-234.30473028,0.00033,120]
[424355399,1780782666000,-382.09704819,0.00033,120]
[424355401,1780782666000,-361.2537955,0.00033,120]
[424355396,1780782666000,-176.49218825,0.00033,120]
[424355392,1780782666000,-191.87100063,0.00033,120]
[424355397,1780782666000,-194.91565139,0.00033,120]
[424355395,1780782666000,-1173.18501591,0.00033,120]
[424355393,1780782666000,-867.65345424,0.00033,120]
[424355394,1780782666000,-247.07951334,0.00033,120]
[424355391,1780782666000,-406.8677431,0.00032955,2]
[424355400,1780782666000,-203.01038069,0.00033,120]
[424355455,1780782667000,-1318.34317665,0.00033119,2]
[424355473,1780782667000,-245.0,0.00033346,30]
[424355456,1780782667000,-1228.59351303,0.00033119,2]
[424355462,1780782667000,-6573.34,0.00033199,7]
[424355463,1780782667000,-278.353637,0.000332,9]
[424355465,1780782667000,-201.70825,0.000332,9]
[424355468,1780782667000,-1050.0,0.00033284,30]
[424355472,1780782667000,-1383.0,0.00033332,30]
[424355467,1780782667000,-3941.34,0.0003325,7]
[424355482,1780782667000,-179.97120458,0.0003349,2]
[424355469,1780782667000,-1337.0,0.00033332,30]
[424355470,1780782667000,-445.0,0.00033332,30]
[424355471,1780782667000,-495.0,0.00033332,30]
[424355466,1780782667000,-150.0,0.00033226,2]
[424355475,1780782667000,-671.0,0.00033347,30]
[424355476,1780782667000,-454.0,0.00033347,30]
[424355477,1780782667000,-1920.0,0.00033347,30]
[424355478,1780782667000,-1467.0,0.00033347,30]
[424355453,1780782667000,-1070.89358529,0.00033119,2]
[424355474,1780782667000,-719.0,0.00033347,30]
[424355454,1780782667000,-1149.83296303,0.00033119,2]
[424355438,1780782667000,-1106.1849634,0.00033115,2]
[424355459,1780782667000,-1215.94540984,0.00033124,2]
[424355439,1780782667000,-2331.1990539,0.00033115,2]
[424355440,1780782667000,-1087.37404818,0.00033115,2]
[424355436,1780782667000,-1441.46824015,0.00033115,2]
[424355441,1780782667000,-1177.84117459,0.00033115,2]
[424355437,1780782667000,-1181.89309285,0.00033115,2]
[424355442,1780782667000,-1135.07170996,0.00033115,2]
[424355480,1780782667000,-391.0,0.00033347,30]
[424355443,1780782667000,-1050.5094051,0.00033115,2]
[424355444,1780782667000,-2174.81354332,0.00033115,2]
[424355452,1780782667000,-1142.46243461,0.00033119,2]
[424355445,1780782667000,-1145.33305563,0.00033115,2]
[424355446,1780782667000,-2092.40489273,0.00033115,2]
[424355447,1780782667000,-1075.45807446,0.00033115,2]
[424355451,1780782667000,-1783.12959585,0.00033119,2]
[424355448,1780782667000,-1520.64692577,0.00033115,2]
[424355449,1780782667000,-1060.49025929,0.00033115,2]
[424355458,1780782667000,-1166.66666667,0.00033119,2]
[424355460,1780782667000,-187.4,0.00033126,30]
[424355461,1780782667000,-179.97120458,0.00033143,2]
[424355457,1780782667000,-1223.24166532,0.00033119,2]
[424355450,1780782667000,-1256.18459061,0.00033115,2]
[424355481,1780782667000,-164.0,0.00033393,11]
[424355464,1780782667000,-270.833318,0.000332,9]
[424355485,1780782667000,-164.0,0.000335,11]
[424355513,1780782667000,-361.2537955,0.000339,120]
[424355508,1780782667000,-176.49218825,0.000339,120]
[424355507,1780782667000,-1173.18501591,0.000339,120]
[424355509,1780782667000,-234.30473028,0.000339,120]
[424355510,1780782667000,-382.09704819,0.000339,120]
[424355511,1780782667000,-194.91565139,0.000339,120]
[424355515,1780782667000,-480.50509247,0.000339,120]
[424355523,1780782667000,-172.04040201,0.000339,120]
[424355524,1780782667000,-661.50976053,0.000339,120]
[424355516,1780782667000,-547.88475529,0.000339,120]
[424355518,1780782667000,-372.39131337,0.000339,120]
[424355517,1780782667000,-606.04571185,0.000339,120]
[424355519,1780782667000,-397.53280426,0.000339,120]
[424355520,1780782667000,-554.51108936,0.000339,120]
[424355521,1780782667000,-227.3557133,0.000339,120]
[424355522,1780782667000,-979.57132833,0.000339,120]
[424355525,1780782667000,-705.07286941,0.000339,120]
[424355528,1780782667000,-3941.34,0.00033935,7]
[424355527,1780782667000,-341.65,0.000339,30]
[424355526,1780782667000,-1450.06087723,0.000339,120]
[424355479,1780782667000,-623.0,0.00033347,30]
[424355512,1780782667000,-203.01038069,0.000339,120]
[424355506,1780782667000,-247.07951334,0.000339,120]
[424355514,1780782667000,-894.1558848,0.000339,120]
[424355502,1780782667000,-179.97120458,0.00033838,2]
[424355484,1780782667000,-1235.34268285,0.000335,2]
[424355505,1780782667000,-867.65345424,0.000339,120]
[424355487,1780782667000,-177.3564083,0.00033508,2]
[424355483,1780782667000,-693.39197629,0.00033495,2]
[424355486,1780782667000,-167.0,0.000335,11]
[424355488,1780782667000,-7508.3650504,0.00033527,2]
[424355498,1780782667000,-150.0,0.00033815,2]
[424355501,1780782667000,-1493.16,0.00033832,120]
[424355499,1780782667000,-150.0,0.00033815,2]
[424355500,1780782667000,-150.0,0.00033815,2]
[424355490,1780782667000,-656.0,0.00033545,9]
[424355493,1780782667000,-652.150639,0.000337,10]
[424355495,1780782667000,-20295.391172,0.000338,60]
[424355491,1780782667000,-327.78,0.00033562,5]
[424355497,1780782667000,-150.0,0.00033815,2]
[424355496,1780782667000,-150.0,0.00033815,2]
[424355489,1780782667000,-1653.4856365,0.00033527,2]
[424355494,1780782667000,-150.337151,0.00033715,2]
[424355492,1780782667000,-500.0,0.00033597,2]
[424355504,1780782667000,-191.87100063,0.000339,120]
[424355503,1780782667000,-6573.34,0.00033884,7]
[424355567,1780782668000,-1920.0,0.00034347,30]
[424355569,1780782668000,-623.0,0.00034347,30]
[424355566,1780782668000,-454.0,0.00034347,30]
[424355563,1780782668000,-245.0,0.00034346,30]
[424355568,1780782668000,-1467.0,0.00034347,30]
[424355574,1780782668000,-150.0,0.00034453,2]
[424355564,1780782668000,-719.0,0.00034347,30]
[424355573,1780782668000,-150.0,0.00034453,2]
[424355572,1780782668000,-150.0,0.00034453,2]
[424355571,1780782668000,-500.0,0.00034425,120]
[424355556,1780782668000,-1050.0,0.00034284,30]
[424355561,1780782668000,-495.0,0.00034332,30]
[424355565,1780782668000,-671.0,0.00034347,30]
[424355570,1780782668000,-391.0,0.00034347,30]
[424355582,1780782668000,-150.33702773,0.00034453,2]
[424355578,1780782668000,-500.0,0.00034453,2]
[424355577,1780782668000,-407.0,0.00034453,2]
[424355576,1780782668000,-407.0,0.00034453,2]
[424355584,1780782668000,-400.0,0.00034453,2]
[424355580,1780782668000,-500.0,0.00034453,2]
[424355581,1780782668000,-150.0,0.00034453,2]
[424355579,1780782668000,-500.0,0.00034453,2]
[424355585,1780782668000,-400.0,0.00034453,2]
[424355583,1780782668000,-400.0,0.00034453,2]
[424355586,1780782668000,-2019.5393159,0.00034498,2]
[424355595,1780782668000,-6573.34,0.00034569,7]
[424355559,1780782668000,-1337.0,0.00034332,30]
[424355587,1780782668000,-287.87,0.00034544,60]
[424355575,1780782668000,-407.0,0.00034453,2]
[424355557,1780782668000,-164.64,0.000343,30]
[424355535,1780782668000,-750.0,0.00034,2]